[Event "*** Monthly 3|2 Blitz Masters"]
[Site "Chess.com"]
[Date "2014.10.28"]
[Round "1"]
[White "Fischwitsch"]
[Black "Time2Pretend"]
[Result "1/2-1/2"]
[WhiteElo "2056"]
[BlackElo "2329"]
[TimeControl "180+2"]
[EndTime "12:08:27 PDT"]
[Termination "Game drawn by repetition"]

1. Nf3 {[%clk 0:03:00]} 1... d5 {[%clk 0:02:58.7]} 2. c4 {[%clk 0:02:57.9]} 2...
e6 {[%clk 0:02:58.3]} 3. g3 {[%clk 0:02:59.1]} 3... Nf6 {[%clk 0:02:58.8]} 4.
Bg2 {[%clk 0:03:00.7]} 4... dxc4 {[%clk 0:02:59.6]} 5. Na3 {[%clk 0:03:00.7]}
5... Bxa3 {[%clk 0:02:59.4]} 6. bxa3 {[%clk 0:03:02.6]} 6... b5 {[%clk
0:02:58.6]} 7. Bb2 {[%clk 0:02:51.7]} 7... Bb7 {[%clk 0:02:57.2]} 8. a4 {[%clk
0:02:35.4]} 8... a6 {[%clk 0:02:55.6]} 9. axb5 {[%clk 0:02:33.9]} 9... axb5
{[%clk 0:02:56.2]} 10. a4 {[%clk 0:02:35.4]} 10... b4 {[%clk 0:02:52.9]} 11. Qc2
{[%clk 0:02:31.4]} 11... Bd5 {[%clk 0:02:53.5]} 12. O-O {[%clk 0:02:29]} 12...
Nbd7 {[%clk 0:02:54.3]} 13. Rfd1 {[%clk 0:02:28]} 13... Nc5 {[%clk 0:02:51.7]}
14. d3 {[%clk 0:02:22.7]} 14... c3 {[%clk 0:02:52.1]} 15. Bxc3 {[%clk
0:02:09.4]} 15... bxc3 {[%clk 0:02:52.5]} 16. Qxc3 {[%clk 0:02:10.5]} 16... Nxa4
{[%clk 0:02:49.1]} 17. Qb4 {[%clk 0:02:09.9]} 17... Nb6 {[%clk 0:02:49.8]} 18.
Rac1 {[%clk 0:02:06.6]} 18... Qd6 {[%clk 0:02:46.1]} 19. Qc3 {[%clk 0:02:02.4]}
19... O-O {[%clk 0:02:44.3]} 20. e4 {[%clk 0:02:03.1]} 20... Bb7 {[%clk
0:02:41.5]} 21. e5 {[%clk 0:02:03.3]} 21... Qd8 {[%clk 0:02:31.4]} 22. exf6
{[%clk 0:02:03.8]} 22... Nd5 {[%clk 0:02:32.6]} 23. Qb2 {[%clk 0:01:58]} 23...
Rb8 {[%clk 0:02:25]} 24. fxg7 {[%clk 0:01:58.8]} 24... Re8 {[%clk 0:02:26.2]}
25. h4 {[%clk 0:01:40.9]} 25... Nf4 {[%clk 0:02:23.9]} 26. Qd2 {[%clk
0:01:26.3]} 26... Nxg2 {[%clk 0:02:22.4]} 27. Kxg2 {[%clk 0:01:27.2]} 27... Qd5
{[%clk 0:02:14.1]} 28. Qe3 {[%clk 0:01:23.2]} 28... Ba8 {[%clk 0:02:12.7]} 29.
Rc5 {[%clk 0:01:24.1]} 29... Qb7 {[%clk 0:02:08.6]} 30. Rdc1 {[%clk 0:01:25.3]}
30... Rbc8 {[%clk 0:02:07.8]} 31. h5 {[%clk 0:01:26.1]} 31... h6 {[%clk
0:02:06.5]} 32. R1c4 {[%clk 0:01:19]} 32... Red8 {[%clk 0:02:05.2]} 33. Rf4
{[%clk 0:01:08.2]} 33... Rd5 {[%clk 0:02:00.1]} 34. Rxd5 {[%clk 0:01:03.8]}
34... Qxd5 {[%clk 0:02:01.3]} 35. Rf6 {[%clk 0:01:03.9]} 35... Qxh5 {[%clk
0:01:49.6]} 36. Kg1 {[%clk 0:01:02.5]} 36... Bxf3 {[%clk 0:01:48.5]} 37. Rxf3
{[%clk 0:01:00.4]} 37... Kxg7 {[%clk 0:01:47.2]} 38. Qd4+ {[%clk 0:00:59]} 38...
e5 {[%clk 0:01:44.9]} 39. Qd7 {[%clk 0:00:55.5]} 39... Qxf3 {[%clk 0:01:39.5]}
40. Qxc8 {[%clk 0:00:56.7]} 40... Qd1+ {[%clk 0:01:38.9]} 41. Kg2 {[%clk
0:00:57.1]} 41... Qxd3 {[%clk 0:01:39.8]} 42. Qxc7 {[%clk 0:00:58.7]} 42... e4
{[%clk 0:01:35.1]} 43. Qf4 {[%clk 0:00:58.1]} 43... Qd5 {[%clk 0:01:34.2]} 44.
Qg4+ {[%clk 0:00:58.7]} 44... Kh7 {[%clk 0:01:33.4]} 45. Kg1 {[%clk 0:00:55.9]}
45... f5 {[%clk 0:01:34.2]} 46. Qf4 {[%clk 0:00:55.6]} 46... Qd7 {[%clk
0:01:33.1]} 47. Kg2 {[%clk 0:00:55.5]} 47... Qe6 {[%clk 0:01:31.6]} 48. Qe3
{[%clk 0:00:56]} 48... Kg6 {[%clk 0:01:32.5]} 49. Qf4 {[%clk 0:00:56.7]} 49...
Qd5 {[%clk 0:01:33.5]} 50. Kg1 {[%clk 0:00:57.5]} 50... Qd1+ {[%clk 0:01:30.9]}
51. Kg2 {[%clk 0:00:58.4]} 51... Qg4 {[%clk 0:01:31.6]} 52. Qd6+ {[%clk
0:00:58.7]} 52... Kh5 {[%clk 0:01:31.4]} 53. Qf6 {[%clk 0:00:55.4]} 53... Qf3+
{[%clk 0:01:26.8]} 54. Kg1 {[%clk 0:00:56.8]} 54... e3 {[%clk 0:01:18.9]} 55.
Qf7+ {[%clk 0:00:50]} 55... Kg5 {[%clk 0:01:15.6]} 56. Qg7+ {[%clk 0:00:49.9]}
56... Kh5 {[%clk 0:01:16.8]} 57. Qf7+ {[%clk 0:00:51.1]} 57... Kg5 {[%clk
0:01:14.7]} 58. Qg7+ {[%clk 0:00:52.5]} 58... Kh5 {[%clk 0:01:15.9]} 59. Qf7+
{[%clk 0:00:53.5]} 59... Kg5 {[%clk 0:01:17.2]} 1/2-1/2

[Event "*** Monthly 3|2 Blitz Masters"]
[Site "Chess.com"]
[Date "2014.10.28"]
[Round "1"]
[White "Iran_Chess_Trainer"]
[Black "THORK"]
[Result "0-1"]
[WhiteElo "2389"]
[BlackElo "2154"]
[TimeControl "180+2"]
[EndTime "12:08:32 PDT"]
[Termination "THORK won on time"]

1. b3 {[%clk 0:02:59.8]} 1... b6 {[%clk 0:02:51.7]} 2. Bb2 {[%clk 0:03:01.7]}
2... Bb7 {[%clk 0:02:53.1]} 3. e3 {[%clk 0:03:03.6]} 3... e6 {[%clk 0:02:50.1]}
4. f4 {[%clk 0:03:05]} 4... c5 {[%clk 0:02:47.1]} 5. Nf3 {[%clk 0:03:06.3]} 5...
a6 {[%clk 0:02:48.3]} 6. Bd3 {[%clk 0:03:07.2]} 6... d6 {[%clk 0:02:47]} 7. O-O
{[%clk 0:03:08.7]} 7... Nd7 {[%clk 0:02:48]} 8. Qe1 {[%clk 0:03:10.2]} 8... Ngf6
{[%clk 0:02:46.4]} 9. Qg3 {[%clk 0:03:11.6]} 9... h6 {[%clk 0:02:46.1]} 10. Nc3
{[%clk 0:03:04.5]} 10... Qc7 {[%clk 0:02:47.2]} 11. Rae1 {[%clk 0:03:01]} 11...
d5 {[%clk 0:02:33.2]} 12. Ne5 {[%clk 0:02:50.3]} 12... Rg8 {[%clk 0:02:26.8]}
13. Nxd7 {[%clk 0:01:18.5]} 13... Nxd7 {[%clk 0:02:19.9]} 14. Nd1 {[%clk
0:01:05.4]} 14... O-O-O {[%clk 0:02:18.8]} 15. c4 {[%clk 0:01:00.8]} 15... g6
{[%clk 0:02:18.8]} 16. cxd5 {[%clk 0:00:35.9]} 16... exd5 {[%clk 0:02:18.7]} 17.
Qh3 {[%clk 0:00:36.5]} 17... f5 {[%clk 0:02:15.5]} 18. Nf2 {[%clk 0:00:28.3]}
18... h5 {[%clk 0:02:16]} 19. Qh4 {[%clk 0:00:25.1]} 19... Bd6 {[%clk 0:02:16]}
20. Nh3 {[%clk 0:00:25.9]} 20... Rde8 {[%clk 0:02:15.2]} 21. Ng5 {[%clk
0:00:26.9]} 21... Re7 {[%clk 0:02:12.7]} 22. Rc1 {[%clk 0:00:25.2]} 22... Kb8
{[%clk 0:02:13.2]} 23. Qf2 {[%clk 0:00:24.7]} 23... Rge8 {[%clk 0:02:14]} 24.
Rc2 {[%clk 0:00:24.3]} 24... b5 {[%clk 0:02:02.5]} 25. Rfc1 {[%clk 0:00:24.7]}
25... c4 {[%clk 0:02:03.9]} 26. Bf1 {[%clk 0:00:25.9]} 26... Nc5 {[%clk
0:02:04.5]} 27. Bd4 {[%clk 0:00:25.7]} 27... Qd7 {[%clk 0:01:53.9]} 28. bxc4
{[%clk 0:00:24.1]} 28... dxc4 {[%clk 0:01:55]} 29. d3 {[%clk 0:00:24.1]} 29...
Nxd3 {[%clk 0:01:54.1]} 30. Bxd3 {[%clk 0:00:25]} 30... cxd3 {[%clk 0:01:55.7]}
31. Rd2 {[%clk 0:00:26.6]} 31... Be4 {[%clk 0:01:56]} 32. a4 {[%clk 0:00:25.2]}
32... Qb7 {[%clk 0:01:55.2]} 33. axb5 {[%clk 0:00:26.2]} 33... axb5 {[%clk
0:01:56.9]} 34. Rb1 {[%clk 0:00:27.6]} 34... b4 {[%clk 0:01:52.1]} 35. Qf1
{[%clk 0:00:26.9]} 35... Rc8 {[%clk 0:01:49.9]} 36. Ra2 {[%clk 0:00:14.4]} 36...
Rc2 {[%clk 0:01:46.3]} 37. Ra7 {[%clk 0:00:14.7]} 37... Rxg2+ {[%clk 0:01:41]}
38. Qxg2 {[%clk 0:00:14.8]} 38... Bxg2 {[%clk 0:01:42.2]} 39. Rxb7+ {[%clk
0:00:16.7]} 39... Bxb7 {[%clk 0:01:43.4]} 40. Kf2 {[%clk 0:00:17.6]} 40... Be4
{[%clk 0:01:44.5]} 41. Nf3 {[%clk 0:00:17.2]} 41... Kb7 {[%clk 0:01:43.6]} 42.
Rb2 {[%clk 0:00:14.4]} 42... Kc6 {[%clk 0:01:44.6]} 43. Nd2 {[%clk 0:00:14.9]}
43... Kd5 {[%clk 0:01:45.6]} 44. Ra2 {[%clk 0:00:14.5]} 44... Rc7 {[%clk
0:01:46.3]} 45. Ra5+ {[%clk 0:00:15.1]} 45... Ke6 {[%clk 0:01:47.8]} 46. Nb3
{[%clk 0:00:16.3]} 46... Rc2+ {[%clk 0:01:48.6]} 47. Kg3 {[%clk 0:00:17.8]}
47... Rg2+ {[%clk 0:01:47.9]} 48. Kh3 {[%clk 0:00:19.3]} 48... Rc2 {[%clk
0:01:47.5]} 49. Ra6 {[%clk 0:00:20.2]} 49... Kd5 {[%clk 0:01:48.2]} 50. Ra5+
{[%clk 0:00:20.9]} 50... Kc4 {[%clk 0:01:49.7]} 51. Na1 {[%clk 0:00:19.3]} 51...
b3 {[%clk 0:01:49.7]} 52. Ra4+ {[%clk 0:00:03.4]} 52... Bb4 {[%clk 0:01:50.4]}
53. Nxc2 {[%clk 0:00:03.5]} 53... bxc2 {[%clk 0:01:49.4]} 0-1

[Event "*** Monthly 3|2 Blitz Masters"]
[Site "Chess.com"]
[Date "2014.10.28"]
[Round "1"]
[White "GMNeiksans"]
[Black "oggy1984"]
[Result "1-0"]
[WhiteElo "2494"]
[BlackElo "2205"]
[TimeControl "180+2"]
[EndTime "12:09:03 PDT"]
[Termination "GMNeiksans won on time"]

1. e4 {[%clk 0:02:59.8]} 1... c5 {[%clk 0:02:53.6]} 2. Nf3 {[%clk 0:03:00.2]}
2... e6 {[%clk 0:02:54.1]} 3. d4 {[%clk 0:03:00.9]} 3... cxd4 {[%clk 0:02:56]}
4. Nxd4 {[%clk 0:03:02]} 4... Nf6 {[%clk 0:02:56.1]} 5. Nc3 {[%clk 0:03:01.6]}
5... d6 {[%clk 0:02:55.3]} 6. Be2 {[%clk 0:02:59.2]} 6... a6 {[%clk 0:02:56.5]}
7. f4 {[%clk 0:02:57.3]} 7... Be7 {[%clk 0:02:55.7]} 8. O-O {[%clk 0:02:57]}
8... Qc7 {[%clk 0:02:56.4]} 9. Be3 {[%clk 0:02:56.2]} 9... Nc6 {[%clk 0:02:54]}
10. Qe1 {[%clk 0:02:56.2]} 10... Bd7 {[%clk 0:02:45.8]} 11. Rd1 {[%clk
0:02:50.2]} 11... O-O {[%clk 0:02:46.1]} 12. Qg3 {[%clk 0:02:49.4]} 12... Nxd4
{[%clk 0:02:42.3]} 13. Bxd4 {[%clk 0:02:49.3]} 13... Bc6 {[%clk 0:02:37.5]} 14.
Kh1 {[%clk 0:02:32.4]} 14... Rfc8 {[%clk 0:02:21.6]} 15. Bd3 {[%clk 0:02:17.2]}
15... b5 {[%clk 0:01:53.6]} 16. e5 {[%clk 0:02:14.8]} 16... Nh5 {[%clk
0:01:01.6]} 17. Qh3 {[%clk 0:01:53.8]} 17... g6 {[%clk 0:00:57.8]} 18. Qe3
{[%clk 0:00:53.1]} 18... Qb7 {[%clk 0:00:44.9]} 19. Rd2 {[%clk 0:00:46.9]} 19...
Rd8 {[%clk 0:00:34.7]} 20. Ne4 {[%clk 0:00:43.6]} 20... dxe5 {[%clk 0:00:20]}
21. fxe5 {[%clk 0:00:37.1]} 21... Ng7 {[%clk 0:00:14.8]} 22. Nf6+ {[%clk
0:00:32.2]} 22... Bxf6 {[%clk 0:00:14]} 23. exf6 {[%clk 0:00:33.7]} 23... Ne8
{[%clk 0:00:13.2]} 24. Qh6 {[%clk 0:00:15.6]} 24... Rd5 {[%clk 0:00:10.1]} 25.
Be3 {[%clk 0:00:07.4]} 25... Rh5 {[%clk 0:00:08.9]} 26. Qf4 {[%clk 0:00:08.6]}
26... Rd8 {[%clk 0:00:07.9]} 27. Kg1 {[%clk 0:00:09.4]} 27... b4 {[%clk
0:00:07.9]} 28. h3 {[%clk 0:00:09.8]} 28... a5 {[%clk 0:00:06.5]} 29. Kh2 {[%clk
0:00:09.1]} 29... Qc7 {[%clk 0:00:06.5]} 30. Qxc7 {[%clk 0:00:09.5]} 30... Nxc7
{[%clk 0:00:08.4]} 31. Bb6 {[%clk 0:00:10]} 31... Rd7 {[%clk 0:00:08.8]} 32.
Rff2 {[%clk 0:00:08.6]} 32... Na8 {[%clk 0:00:08.3]} 33. Be3 {[%clk 0:00:09.2]}
33... Rhd5 {[%clk 0:00:08.3]} 34. Bf4 {[%clk 0:00:08.3]} 34... a4 {[%clk
0:00:09]} 35. b3 {[%clk 0:00:08.2]} 35... a3 {[%clk 0:00:07.4]} 36. Rde2 {[%clk
0:00:09.5]} 36... Nb6 {[%clk 0:00:07.5]} 37. Bd2 {[%clk 0:00:10.6]} 37... Rd4
{[%clk 0:00:06.6]} 38. Be3 {[%clk 0:00:12]} 38... Bb7 {[%clk 0:00:03.5]} 39.
Bxd4 {[%clk 0:00:12.9]} 39... Rxd4 {[%clk 0:00:05.4]} 40. Rd2 {[%clk 0:00:13.8]}
40... e5 {[%clk 0:00:04.8]} 41. Bf1 {[%clk 0:00:13.8]} 1-0

[Event "*** Monthly 3|2 Blitz Masters"]
[Site "Chess.com"]
[Date "2014.10.28"]
[Round "2"]
[White "Danesz22"]
[Black "HZMC92"]
[Result "1-0"]
[WhiteElo "2362"]
[BlackElo "2153"]
[TimeControl "180+2"]
[EndTime "12:14:26 PDT"]
[Termination "Danesz22 won by resignation"]

1. e4 {[%clk 0:03:00]} 1... c5 {[%clk 0:02:58.8]} 2. Nf3 {[%clk 0:03:00.4]} 2...
d6 {[%clk 0:02:58.9]} 3. d4 {[%clk 0:03:01.3]} 3... cxd4 {[%clk 0:03:00.1]} 4.
Nxd4 {[%clk 0:03:02.4]} 4... Nf6 {[%clk 0:03:01.6]} 5. Nc3 {[%clk 0:03:03.5]}
5... g6 {[%clk 0:03:03]} 6. Be3 {[%clk 0:03:03.9]} 6... Bg7 {[%clk 0:03:04.3]}
7. f3 {[%clk 0:03:04.6]} 7... O-O {[%clk 0:03:05.5]} 8. Qd2 {[%clk 0:03:05.4]}
8... Nc6 {[%clk 0:03:06.9]} 9. Bc4 {[%clk 0:03:06.1]} 9... Bd7 {[%clk
0:03:07.5]} 10. O-O-O {[%clk 0:03:06.6]} 10... Rc8 {[%clk 0:03:04.4]} 11. Bb3
{[%clk 0:03:07]} 11... Ne5 {[%clk 0:03:05.7]} 12. h4 {[%clk 0:03:07.9]} 12...
Nc4 {[%clk 0:03:03.6]} 13. Bxc4 {[%clk 0:03:08.1]} 13... Rxc4 {[%clk 0:03:05.5]}
14. Kb1 {[%clk 0:03:08.9]} 14... b5 {[%clk 0:02:59.3]} 15. b3 {[%clk 0:02:59.2]}
15... Rc5 {[%clk 0:02:44.8]} 16. Ne6 {[%clk 0:02:52.2]} 16... fxe6 {[%clk
0:02:45.9]} 17. Bxc5 {[%clk 0:02:53]} 17... dxc5 {[%clk 0:02:24.3]} 18. e5
{[%clk 0:02:53.3]} 18... Nd5 {[%clk 0:02:21.7]} 19. Nxd5 {[%clk 0:02:53.6]}
19... Bxe5 {[%clk 0:02:15.7]} 20. Qg5 {[%clk 0:02:45.1]} 20... Bg7 {[%clk
0:01:58]} 21. h5 {[%clk 0:01:42.3]} 21... Rf5 {[%clk 0:01:44]} 22. Nxe7+ {[%clk
0:01:42.1]} 22... Kf7 {[%clk 0:01:45.2]} 23. hxg6+ {[%clk 0:01:41.9]} 23... Kf8
{[%clk 0:01:35.8]} 24. Rxd7 {[%clk 0:01:34.3]} 24... Qxd7 {[%clk 0:01:26.3]} 25.
Nxf5 {[%clk 0:01:35.2]} 25... exf5 {[%clk 0:01:27.3]} 26. gxh7 {[%clk
0:01:33.4]} 26... Qd4 {[%clk 0:01:28]} 27. Qxg7+ {[%clk 0:01:34.2]} 1-0

[Event "*** Monthly 3|2 Blitz Masters"]
[Site "Chess.com"]
[Date "2014.10.28"]
[Round "2"]
[White "marabu44"]
[Black "AlmirDzhumaev"]
[Result "1/2-1/2"]
[WhiteElo "2223"]
[BlackElo "2210"]
[TimeControl "180+2"]
[EndTime "12:14:59 PDT"]
[Termination "Game drawn by agreement"]

1. Nf3 {[%clk 0:03:00]} 1... d5 {[%clk 0:02:59]} 2. b3 {[%clk 0:03:00.6]} 2...
Nf6 {[%clk 0:02:55]} 3. Bb2 {[%clk 0:03:01.6]} 3... e6 {[%clk 0:02:56.6]} 4. e3
{[%clk 0:03:02.3]} 4... Be7 {[%clk 0:02:58.1]} 5. Be2 {[%clk 0:02:58.3]} 5... b6
{[%clk 0:02:59.5]} 6. O-O {[%clk 0:02:58.9]} 6... Bb7 {[%clk 0:03:01]} 7. d3
{[%clk 0:02:59.8]} 7... c5 {[%clk 0:03:01.8]} 8. Nbd2 {[%clk 0:03:00.5]} 8...
Nc6 {[%clk 0:03:02.8]} 9. Ne5 {[%clk 0:03:01.6]} 9... O-O {[%clk 0:02:56.7]} 10.
Ndf3 {[%clk 0:03:01.4]} 10... Nxe5 {[%clk 0:02:55.5]} 11. Nxe5 {[%clk
0:03:02.2]} 11... Nd7 {[%clk 0:02:56.7]} 12. f4 {[%clk 0:03:01.5]} 12... f6
{[%clk 0:02:53.3]} 13. Nxd7 {[%clk 0:02:56.8]} 13... Qxd7 {[%clk 0:02:54.5]} 14.
Bf3 {[%clk 0:02:58.2]} 14... Bd6 {[%clk 0:02:50.1]} 15. Qe1 {[%clk 0:02:54.2]}
15... Rae8 {[%clk 0:02:50.4]} 16. Qh4 {[%clk 0:02:46.9]} 16... e5 {[%clk
0:02:51.3]} 17. Rae1 {[%clk 0:02:40]} 17... exf4 {[%clk 0:02:46.4]} 18. exf4
{[%clk 0:02:39.8]} 18... d4 {[%clk 0:02:47.8]} 19. Bc1 {[%clk 0:02:27.1]} 19...
Bxf3 {[%clk 0:02:47.5]} 20. Rxf3 {[%clk 0:02:26.5]} 20... Rxe1+ {[%clk
0:02:48.3]} 21. Qxe1 {[%clk 0:02:26.9]} 21... Re8 {[%clk 0:02:49.9]} 22. Qf1
{[%clk 0:02:24.1]} 22... f5 {[%clk 0:02:50.5]} 23. a4 {[%clk 0:02:20.9]} 23...
Re6 {[%clk 0:02:47.7]} 24. Rf2 {[%clk 0:02:15.7]} 24... Qe7 {[%clk 0:02:43.4]}
25. Bd2 {[%clk 0:02:16.2]} 25... Qh4 {[%clk 0:02:43.4]} 26. g3 {[%clk
0:02:10.4]} 26... Qg4 {[%clk 0:02:40.5]} 27. Rf3 {[%clk 0:01:58.1]} 27... h6
{[%clk 0:02:34.8]} 28. Kg2 {[%clk 0:01:56.2]} 28... Kh7 {[%clk 0:02:21.8]} 29.
Qd1 {[%clk 0:01:50.9]} 29... Qg6 {[%clk 0:02:21.3]} 30. Rf2 {[%clk 0:01:42.6]}
30... Qe8 {[%clk 0:02:17.9]} 31. Qf3 {[%clk 0:01:42.5]} 31... Qe7 {[%clk
0:02:12.7]} 32. h4 {[%clk 0:01:42.9]} 32... g6 {[%clk 0:02:12.7]} 33. Kg1 {[%clk
0:01:39.6]} 33... h5 {[%clk 0:02:14.1]} 34. Kg2 {[%clk 0:01:40.5]} 34... Kg7
{[%clk 0:02:08.4]} 35. Kg1 {[%clk 0:01:41.6]} 35... Kf7 {[%clk 0:01:57.2]} 36.
Kg2 {[%clk 0:01:42.5]} 36... a6 {[%clk 0:01:47.4]} 37. Qa8 {[%clk 0:01:38.6]}
37... a5 {[%clk 0:01:43.8]} 38. Qd5 {[%clk 0:01:39.3]} 38... Kg7 {[%clk
0:01:43]} 39. Qf3 {[%clk 0:01:40]} 1/2-1/2

[Event "*** Monthly 3|2 Blitz Masters"]
[Site "Chess.com"]
[Date "2014.10.28"]
[Round "2"]
[White "jcibarra"]
[Black "JamesColeman"]
[Result "1-0"]
[WhiteElo "2442"]
[BlackElo "2342"]
[TimeControl "180+2"]
[EndTime "12:15:01 PDT"]
[Termination "jcibarra won by resignation"]

1. e4 {[%clk 0:03:00]} 1... e5 {[%clk 0:02:57.7]} 2. Nf3 {[%clk 0:03:00.9]} 2...
Nc6 {[%clk 0:02:58.7]} 3. Bb5 {[%clk 0:03:00.9]} 3... Nf6 {[%clk 0:02:59.5]} 4.
O-O {[%clk 0:03:00.9]} 4... Nxe4 {[%clk 0:03:00]} 5. d4 {[%clk 0:03:01.6]} 5...
Nd6 {[%clk 0:03:00]} 6. dxe5 {[%clk 0:03:02.6]} 6... Nxb5 {[%clk 0:03:00.4]} 7.
a4 {[%clk 0:03:04.1]} 7... Nbd4 {[%clk 0:03:01.4]} 8. Nxd4 {[%clk 0:03:05.1]}
8... Nxd4 {[%clk 0:03:03.3]} 9. Qxd4 {[%clk 0:03:06]} 9... d5 {[%clk 0:02:57]}
10. Nc3 {[%clk 0:03:06.2]} 10... c6 {[%clk 0:02:56.9]} 11. Qd3 {[%clk
0:03:07.3]} 11... Be7 {[%clk 0:02:50.5]} 12. Qg3 {[%clk 0:03:06.9]} 12... g6
{[%clk 0:02:10.7]} 13. Bh6 {[%clk 0:03:06.3]} 13... Be6 {[%clk 0:02:11.5]} 14.
a5 {[%clk 0:03:01.6]} 14... Bf8 {[%clk 0:02:09.2]} 15. Bxf8 {[%clk 0:02:58.8]}
15... Kxf8 {[%clk 0:02:09.7]} 16. Ne2 {[%clk 0:02:52.5]} 16... Kg7 {[%clk
0:02:05.8]} 17. Nd4 {[%clk 0:02:45.6]} 17... c5 {[%clk 0:02:01.1]} 18. Nb5
{[%clk 0:02:46.3]} 18... d4 {[%clk 0:01:57]} 19. Nd6 {[%clk 0:02:41.2]} 19...
Qd7 {[%clk 0:01:52.5]} 20. f4 {[%clk 0:02:39.1]} 20... f5 {[%clk 0:01:27.3]} 21.
exf6+ {[%clk 0:02:32]} 21... Kxf6 {[%clk 0:01:27.6]} 22. Qg5+ {[%clk 0:02:27.9]}
22... Kg7 {[%clk 0:01:26.8]} 23. Qe5+ {[%clk 0:02:24.7]} 23... Kg8 {[%clk
0:01:15.8]} 24. f5 {[%clk 0:02:24]} 24... Bf7 {[%clk 0:01:05.7]} 25. fxg6 {[%clk
0:02:13.3]} 25... Bxg6 {[%clk 0:01:05.7]} 26. Rae1 {[%clk 0:02:06.2]} 26... Rd8
{[%clk 0:00:36.3]} 27. Rf6 {[%clk 0:02:04.9]} 1-0

[Event "*** Monthly 3|2 Blitz Masters"]
[Site "Chess.com"]
[Date "2014.10.28"]
[Round "2"]
[White "Th3ChessViking"]
[Black "KingPetrosian"]
[Result "1-0"]
[WhiteElo "2390"]
[BlackElo "2091"]
[TimeControl "180+2"]
[EndTime "12:15:18 PDT"]
[Termination "Th3ChessViking won by resignation"]

1. d4 {[%clk 0:03:00]} 1... Nf6 {[%clk 0:02:58.3]} 2. Nf3 {[%clk 0:03:00.6]}
2... d5 {[%clk 0:02:58]} 3. Bf4 {[%clk 0:02:59.3]} 3... e6 {[%clk 0:02:51.2]} 4.
e3 {[%clk 0:02:57.7]} 4... h6 {[%clk 0:02:49.9]} 5. Nbd2 {[%clk 0:02:52.5]} 5...
Bd6 {[%clk 0:02:50]} 6. Bg3 {[%clk 0:02:53.1]} 6... Bxg3 {[%clk 0:02:49.6]} 7.
hxg3 {[%clk 0:02:55]} 7... O-O {[%clk 0:02:49.9]} 8. Bd3 {[%clk 0:02:54.7]} 8...
Nc6 {[%clk 0:02:48.9]} 9. c3 {[%clk 0:02:54.8]} 9... Qe7 {[%clk 0:02:49]} 10.
Bb5 {[%clk 0:02:42.1]} 10... Bd7 {[%clk 0:02:48.3]} 11. Bxc6 {[%clk 0:02:41.6]}
11... Bxc6 {[%clk 0:02:47]} 12. Ne5 {[%clk 0:02:43.5]} 12... Qd6 {[%clk
0:02:43.2]} 13. g4 {[%clk 0:02:39.8]} 13... Nd7 {[%clk 0:02:43]} 14. f4 {[%clk
0:02:36.8]} 14... Nxe5 {[%clk 0:02:37.1]} 15. dxe5 {[%clk 0:02:32.2]} 15... Qe7
{[%clk 0:02:37.1]} 16. g5 {[%clk 0:02:25.9]} 16... f6 {[%clk 0:02:28.6]} 17.
exf6 {[%clk 0:02:01.3]} 17... gxf6 {[%clk 0:02:28]} 18. gxh6 {[%clk 0:02:02.4]}
18... Qh7 {[%clk 0:02:25.3]} 19. Qg4+ {[%clk 0:02:00.9]} 19... Kf7 {[%clk
0:02:24.9]} 20. Qh5+ {[%clk 0:01:54.9]} 20... Ke7 {[%clk 0:02:22.8]} 21. O-O-O
{[%clk 0:01:53.5]} 21... Be8 {[%clk 0:02:21.6]} 22. Qh4 {[%clk 0:01:50.7]} 22...
a5 {[%clk 0:02:14.6]} 23. g4 {[%clk 0:01:49.9]} 23... b5 {[%clk 0:02:12.2]} 24.
g5 {[%clk 0:01:50.1]} 24... Bg6 {[%clk 0:02:08.2]} 25. gxf6+ {[%clk 0:01:28.9]}
25... Rxf6 {[%clk 0:02:08.1]} 26. Rhg1 {[%clk 0:01:30.3]} 26... Kf7 {[%clk
0:01:57.5]} 27. e4 {[%clk 0:01:25.2]} 27... b4 {[%clk 0:01:52.4]} 28. Nf3 {[%clk
0:01:15.9]} 28... Ke7 {[%clk 0:01:47.4]} 29. e5 {[%clk 0:01:14.8]} 29... Rf8
{[%clk 0:01:40.9]} 30. exf6+ {[%clk 0:01:14.1]} 30... Rxf6 {[%clk 0:01:41.2]}
31. Ne5 {[%clk 0:01:12.2]} 31... bxc3 {[%clk 0:01:37.6]} 32. Rxg6 {[%clk
0:01:08.7]} 1-0

[Event "*** Monthly 3|2 Blitz Masters"]
[Site "Chess.com"]
[Date "2014.10.28"]
[Round "2"]
[White "GMG"]
[Black "KaydenTroffChess"]
[Result "1-0"]
[WhiteElo "2310"]
[BlackElo "2332"]
[TimeControl "180+2"]
[EndTime "12:15:46 PDT"]
[Termination "GMG won by resignation"]

1. c4 {[%clk 0:03:00]} 1... Nf6 {[%clk 0:02:55.7]} 2. Nc3 {[%clk 0:03:01.5]}
2... e5 {[%clk 0:02:56.4]} 3. Nf3 {[%clk 0:03:01.5]} 3... Nc6 {[%clk 0:02:57.4]}
4. g3 {[%clk 0:03:03.1]} 4... Nd4 {[%clk 0:02:57.4]} 5. Bg2 {[%clk 0:03:03.6]}
5... Nxf3+ {[%clk 0:02:58.3]} 6. Bxf3 {[%clk 0:03:05.1]} 6... Bb4 {[%clk
0:02:59.3]} 7. Qb3 {[%clk 0:03:06.4]} 7... Bxc3 {[%clk 0:02:57.3]} 8. Qxc3
{[%clk 0:03:07.1]} 8... e4 {[%clk 0:02:52.9]} 9. Bg2 {[%clk 0:03:08]} 9... O-O
{[%clk 0:02:53.5]} 10. O-O {[%clk 0:03:09.3]} 10... c6 {[%clk 0:02:45.4]} 11. d3
{[%clk 0:03:09.6]} 11... exd3 {[%clk 0:02:44.9]} 12. Qxd3 {[%clk 0:03:10.3]}
12... h6 {[%clk 0:02:44.5]} 13. b3 {[%clk 0:03:08]} 13... d5 {[%clk 0:02:33.2]}
14. cxd5 {[%clk 0:02:52.3]} 14... Nxd5 {[%clk 0:02:31.1]} 15. Rd1 {[%clk
0:02:53.2]} 15... Be6 {[%clk 0:02:29.8]} 16. Ba3 {[%clk 0:02:53]} 16... Re8
{[%clk 0:02:28.6]} 17. e4 {[%clk 0:02:52.6]} 17... Nc7 {[%clk 0:02:13.3]} 18. f3
{[%clk 0:02:45.6]} 18... Nb5 {[%clk 0:02:11.9]} 19. Bc5 {[%clk 0:02:45.3]} 19...
Qa5 {[%clk 0:02:07.2]} 20. a4 {[%clk 0:02:44.3]} 20... Nc7 {[%clk 0:01:56.6]}
21. b4 {[%clk 0:02:44.9]} 21... Qa6 {[%clk 0:01:57.4]} 22. Qd6 {[%clk
0:02:42.1]} 22... Rac8 {[%clk 0:01:52.8]} 23. Qd4 {[%clk 0:02:40.3]} 23... b6
{[%clk 0:01:52.7]} 24. Bd6 {[%clk 0:02:41.4]} 24... Red8 {[%clk 0:01:52.6]} 25.
Bf1 {[%clk 0:02:32.3]} 25... Qb7 {[%clk 0:01:49.7]} 26. Qc3 {[%clk 0:02:31.2]}
26... Ne8 {[%clk 0:01:40.8]} 27. Be5 {[%clk 0:02:29.5]} 27... f6 {[%clk
0:01:29.5]} 28. Bd4 {[%clk 0:02:29.2]} 28... Nd6 {[%clk 0:01:20.3]} 29. e5
{[%clk 0:02:26.8]} 29... fxe5 {[%clk 0:01:07.5]} 30. Bxe5 {[%clk 0:02:27.4]}
30... Ne8 {[%clk 0:01:05.9]} 31. Bd3 {[%clk 0:02:16.6]} 31... Qf7 {[%clk
0:01:01]} 32. Ba6 {[%clk 0:02:16.5]} 32... Ra8 {[%clk 0:01:00]} 33. Qxc6 {[%clk
0:02:12.1]} 33... Bb3 {[%clk 0:00:55.6]} 34. Rxd8 {[%clk 0:02:06.5]} 34... Rxd8
{[%clk 0:00:57.5]} 35. Qc3 {[%clk 0:02:05.6]} 35... Bd5 {[%clk 0:00:56.2]} 36.
Rf1 {[%clk 0:02:05.6]} 36... Rd7 {[%clk 0:00:52]} 37. Rd1 {[%clk 0:02:00]} 37...
Re7 {[%clk 0:00:48.4]} 38. Rxd5 {[%clk 0:02:00.1]} 38... Kh8 {[%clk 0:00:35.4]}
39. Bc4 {[%clk 0:01:59.7]} 39... Qf5 {[%clk 0:00:30.9]} 40. Bxg7+ {[%clk
0:01:59.2]} 1-0